fUSD/lending_fUSD_20240714
["ID","MTS","AMOUNT","RATE_DAILY","PERIOD"]
[332139744,1720986639498,-2000.0,0.000139,2]
[332139747,1720986639508,-200.0,0.000139,2]
[332139749,1720986639519,-158.41110214,0.000139,2]
[332139751,1720986639529,-1287.36649626,0.000139,2]
[332139753,1720986639540,-199.80607527,0.000139,2]
[332139755,1720986639550,-7602.72185413,0.00013904,3]
[332139757,1720986639560,-7602.72185413,0.00013905,3]
[332139759,1720986639569,-500.0,0.00013913,2]
[332139761,1720986639578,-500.0,0.00013913,2]
[332139763,1720986639587,-500.0,0.00013913,2]
[332139765,1720986639596,-500.0,0.00013913,2]
[332139766,1720986639605,-152.99191401,0.00013913,2]
[332139769,1720986639615,-500.0,0.00013913,2]
[332139771,1720986639626,-500.0,0.00013913,2]
[332139773,1720986639636,-500.0,0.00013913,2]
[332139775,1720986639645,-500.0,0.00013913,2]
[332139777,1720986639656,-301.8,0.00013913,2]
[332139779,1720986639665,-500.0,0.00013914,2]
[332139781,1720986639674,-876.25,0.00013914,2]
[332139783,1720986639683,-500.0,0.00013914,2]
[332139785,1720986639692,-500.0,0.00013914,2]
[332139787,1720986639701,-679.07,0.00013914,2]
[332139789,1720986639713,-680.23,0.00013914,2]
[332139791,1720986639722,-500.0,0.00013914,2]
[332139793,1720986639731,-500.0,0.00013914,2]
[332139795,1720986639741,-500.0,0.00013914,2]
[332139797,1720986639750,-296.64,0.00013914,2]
[332139799,1720986639759,-632.52,0.00013914,2]
[332139801,1720986639769,-1596.79,0.00013914,2]
[332139803,1720986639778,-208.66,0.00013914,2]
[332139805,1720986639787,-500.0,0.00013914,2]
[332139807,1720986639797,-500.0,0.00013914,2]
[332139809,1720986639807,-500.0,0.00013914,2]
[332139811,1720986639816,-500.0,0.00013914,2]
[332139813,1720986639825,-2012.1,0.00013914,2]
[332139815,1720986639834,-288.33,0.00013914,2]
[332139817,1720986639843,-378.62,0.00013914,2]
[332139819,1720986639852,-500.0,0.00013914,2]
[332139821,1720986639862,-1766.71,0.00013914,2]
[332139823,1720986639871,-727.82,0.00013914,2]
[332139825,1720986639881,-500.0,0.00013915,2]
[332139827,1720986639891,-500.0,0.00013915,2]
[332139829,1720986639901,-368.61,0.00013915,2]
[332139831,1720986639911,-213.18,0.00013915,2]
[332139834,1720986639920,-500.0,0.00013915,2]
[332139836,1720986639930,-500.0,0.00013915,2]
[332139838,1720986639939,-500.0,0.00013915,2]
[332139840,1720986639948,-500.0,0.00013915,2]
[332139841,1720986639957,-301.62356053,0.00013915,2]
[332139843,1720986639967,-294.36,0.00013915,2]
[332139845,1720986639976,-500.0,0.00013915,2]
[332139847,1720986639986,-500.0,0.00013915,2]
[332139849,1720986639995,-280.71,0.00013915,2]
[332139851,1720986640005,-500.0,0.00013915,2]
[332139853,1720986640014,-560.24312322,0.00013915,2]
[332139855,1720986640023,-500.0,0.00013915,2]
[332139857,1720986640033,-394.06984416,0.00013918,2]
[332139859,1720986640042,-7602.72185413,0.00013934,3]
[332139860,1720986640051,-7602.72185413,0.0001394,3]
[332139862,1720986640060,-7602.72185413,0.00013944,3]
[332139864,1720986640070,-7602.72185413,0.00013947,3]
[332139866,1720986640079,-7602.72185413,0.0001395,3]
[332139868,1720986640088,-203.94857318,0.00013951,2]
[332139870,1720986640096,-500.0,0.00013954,2]
[332139872,1720986640105,-528.98877095,0.00013954,2]
[332139874,1720986640114,-500.0,0.00013954,2]
[332139876,1720986640124,-500.0,0.00013954,2]
[332139878,1720986640133,-500.0,0.00013954,2]
[332139880,1720986640143,-500.0,0.00013954,2]
[332139882,1720986640151,-500.0,0.00013954,2]
[332139884,1720986640161,-150.0,0.00013954,2]
[332139886,1720986640170,-598.31,0.00013954,2]
[332139888,1720986640180,-500.0,0.00013954,2]
[332139890,1720986640190,-500.0,0.00013954,2]
[332139892,1720986640199,-500.0,0.00013954,2]
[332139894,1720986640208,-500.0,0.00013954,2]
[332139896,1720986640218,-500.0,0.00013954,2]
[332139898,1720986640228,-500.0,0.00013954,2]
[332139900,1720986640238,-500.0,0.00013954,2]
[332139902,1720986640247,-282.24,0.00013954,2]
[332139904,1720986640256,-500.0,0.00013954,2]
[332139906,1720986640266,-500.0,0.00013954,2]
[332139908,1720986640277,-500.0,0.00013954,2]
[332139911,1720986640287,-263.1,0.00013954,2]
[332139913,1720986640296,-500.0,0.00013954,2]
[332139915,1720986640308,-505.87902639,0.00013954,2]
[332139917,1720986640318,-613.44,0.00013954,2]
[332139919,1720986640328,-500.0,0.00013954,2]
[332139921,1720986640338,-479.39031865,0.00013954,2]
[332139923,1720986640349,-348.99487027,0.00013954,2]
[332139925,1720986640358,-500.0,0.00013954,2]
[332139927,1720986640369,-500.0,0.00013954,2]
[332139929,1720986640379,-500.0,0.00013954,2]
[332139931,1720986640388,-500.0,0.00013954,2]
[332139933,1720986640398,-500.0,0.00013954,2]
[332139935,1720986640409,-500.0,0.00013954,2]
[332139937,1720986640419,-500.0,0.00013954,2]
[332139940,1720986640428,-500.0,0.00013954,2]
[332139942,1720986640438,-500.0,0.00013954,2]
[332139944,1720986640447,-500.0,0.00013954,2]
[332139946,1720986640456,-591.05,0.00013954,2]
[332139948,1720986640465,-500.0,0.00013954,2]
[332139950,1720986640475,-500.0,0.00013954,2]
[332139952,1720986640485,-595.39,0.00013954,2]
[332139954,1720986640495,-500.0,0.00013954,2]
[332139956,1720986640505,-500.0,0.00013954,2]
[332139958,1720986640514,-500.0,0.00013954,2]
[332139960,1720986640524,-500.0,0.00013954,2]
[332139962,1720986640535,-500.0,0.00013954,2]
[332139964,1720986640545,-504.3,0.00013954,2]
[332139966,1720986640555,-500.0,0.00013954,2]
[332139968,1720986640565,-500.0,0.00013954,2]
[332139970,1720986640575,-500.0,0.00013954,2]
[332139973,1720986640585,-500.0,0.00013954,2]
[332139975,1720986640596,-520.7,0.00013954,2]
[332139977,1720986640606,-500.0,0.00013954,2]
[332139979,1720986640617,-500.0,0.00013954,2]
[332139981,1720986640626,-500.0,0.00013954,2]
[332139983,1720986640637,-464.87,0.00013954,2]
[332139985,1720986640647,-500.0,0.00013954,2]
[332139987,1720986640656,-500.0,0.00013954,2]
[332139989,1720986640668,-30410.8874165,0.0001396,3]
[332139991,1720986640677,-114040.827812,0.0001396,3]
[332139994,1720986640687,-94225.5644755,0.0001396,3]
[332139996,1720986640697,-300.529,0.00013965,2]
[332139998,1720986640706,-500.0,0.00013968,2]
[332140000,1720986640715,-500.0,0.00013968,2]
[332140002,1720986640724,-500.0,0.00013968,2]
[332140004,1720986640734,-500.0,0.00013968,2]
[332140006,1720986640743,-500.0,0.00013968,2]
[332140008,1720986640753,-500.0,0.00013968,2]
[332140010,1720986640762,-500.0,0.00013968,2]
[332140012,1720986640772,-876.25,0.00013969,2]
[332140013,1720986640781,-236.9,0.00013969,2]
[332140016,1720986640792,-500.0,0.00013969,2]
[332140018,1720986640802,-679.07,0.00013969,2]
[332140019,1720986640811,-680.23,0.00013969,2]
[332140021,1720986640821,-500.0,0.00013969,2]
[332140023,1720986640830,-500.0,0.00013969,2]
[332140025,1720986640840,-500.0,0.00013969,2]
[332140028,1720986640850,-632.52,0.00013969,2]
[332140030,1720986640860,-1596.79,0.00013969,2]
[332140031,1720986640869,-500.0,0.00013969,2]
[332140034,1720986640880,-500.0,0.00013969,2]
[332140036,1720986640889,-500.0,0.00013969,2]
[332140038,1720986640899,-500.0,0.00013969,2]
[332140040,1720986640908,-2012.1,0.00013969,2]
[332140042,1720986640918,-500.0,0.00013969,2]
[332140044,1720986640928,-1766.71,0.00013969,2]
[332140046,1720986640937,-727.82,0.00013969,2]
[332140048,1720986640947,-15205.4437083,0.00013969,3]
[332140050,1720986640957,-50736.8424099,0.00013969,3]
[332140052,1720986640966,-209.23937925,0.0001397,2]
[332140054,1720986640975,-500.0,0.0001397,2]
[332140056,1720986640984,-500.0,0.0001397,2]
[332140058,1720986640994,-500.0,0.0001397,2]
[332140060,1720986641003,-500.0,0.0001397,2]
[332140062,1720986641012,-500.0,0.0001397,2]
[332140064,1720986641022,-500.0,0.0001397,2]
[332140066,1720986641031,-500.0,0.0001397,2]
[332140068,1720986641041,-500.0,0.0001397,2]
[332140070,1720986641050,-500.0,0.0001397,2]
[332140072,1720986641059,-151.0,0.0001397,2]
[332140074,1720986641069,-151.0,0.0001397,2]
[332140076,1720986641078,-21744.3610328,0.0001397,3]
[332140078,1720986641087,-394.06984416,0.00013973,2]
[332140080,1720986641097,-1000.0,0.00013973,5]
[332140082,1720986641106,-270.52997757,0.00013979,2]
[332140084,1720986641115,-151.0,0.00013979,2]
[332140086,1720986641125,-79729.323787,0.0001398,3]
[332140088,1720986641135,-7248.12034427,0.00013989,3]
[332140090,1720986641144,-107822.58402144,0.0001399,3]
[332140110,1720986641348,-531.77659901,0.0001399,3]
[332140111,1720986641361,-1450.0,0.0001399,3]
[332140112,1720986641373,-6542.33263078,0.0001399,3]
[332140114,1720986641396,-500.0,0.00013804,2]
[332140116,1720986641409,-14119.47294577,0.0001399,3]
[332140118,1720986641419,-614.0,0.0001399,2]
[332140120,1720986641428,-183.619241,0.0001399,2]
[332140122,1720986641438,-336.15602891,0.00013999,2]
[332140139,1720986641592,-462.35092215,0.00013999,2]
[332140141,1720986641604,-588668.25525773,0.00014,2]
[332140143,1720986641615,-1197.77759043,0.00014,2]
[332140145,1720986641627,-1416.05865627,0.00014,2]
[332140147,1720986641639,-615.77052,0.00014,2]
[332140149,1720986641650,-1344.78568796,0.00014,2]
[332140152,1720986641663,-496.77,0.00014,2]
[332140154,1720986641675,-521.44331218,0.00014,2]
[332140156,1720986641687,-287.37338502,0.00014,2]
[332140159,1720986641699,-2766.70916013,0.00014,2]
[332140161,1720986641711,-2470.24297497,0.00014,2]
[332140163,1720986641724,-1579.80960355,0.00014,2]
[332140166,1720986641736,-7028.89931554,0.00014,2]
[332140168,1720986641754,-500.0,0.00013859,2]
[332140170,1720986641764,-1028.35103245,0.00014,2]
[332140173,1720986641775,-1973.22629204,0.00014,2]
[332140175,1720986641787,-451.63886766,0.00014,2]
[332140177,1720986641798,-263.47322908,0.00014,2]
[332140179,1720986641809,-5089.15586786,0.00014,2]
[332140207,1720986642071,-300.51199197,0.00013452,2]
[332140209,1720986642081,-500.0,0.00013859,2]
[332140211,1720986642091,-830.85006559,0.000139,2]
[332140213,1720986642103,-1167.56978197,0.000139,2]
[332140217,1720986642129,-857.89834951,0.000139,2]
[332140219,1720986642139,-159.21803723,0.000139,2]
[332140221,1720986642149,-500.0,0.00013914,2]
[332140223,1720986642159,-253.83,0.00013969,2]
[332140225,1720986642168,-2090.63265565,0.00014,2]
[332140227,1720986642179,-307.07755376,0.00014,2]
[332140229,1720986642191,-703.07606311,0.00014,2]
[332140231,1720986642203,-5139.54579721,0.00014,2]
[332140233,1720986642215,-712.39138912,0.00014,2]
[332140236,1720986642227,-925.53666701,0.00014,2]
[332140238,1720986642239,-515.28705452,0.00014,2]
[332140240,1720986642251,-1134.70787623,0.00014,2]
[332140243,1720986642263,-12262.31843964,0.00014,2]
[332140245,1720986642275,-916.92440523,0.00014,2]
[332140247,1720986642286,-16175.0,0.00014,2]
[332140249,1720986642298,-11038.11827129,0.00014,2]
[332140251,1720986642309,-5213.2416444,0.00014,2]
[332140253,1720986642319,-10057.58,0.00014,2]
[332140256,1720986642331,-901.37718854,0.00014,2]
[332140258,1720986642342,-1138.761741,0.00014,2]
[332140260,1720986642353,-7570.38815316,0.00014,2]
[332140262,1720986642364,-325.63355842,0.00014,2]
[332140265,1720986642382,-2421.54983553,0.00014,2]
[332140267,1720986642394,-23996.93107085,0.00014,2]
[332140269,1720986642410,-59153.21796922,0.00014,2]
[332140271,1720986642420,-4852.6012,0.00014,2]
[332140273,1720986642431,-10315.26684458,0.00014,2]
[332140276,1720986642442,-541.74,0.00014,2]
[332140278,1720986642454,-489.99059737,0.00014,2]
[332140280,1720986642466,-442.25,0.00014,2]
[332140283,1720986642484,-540.18000005,0.00014,2]
[332140285,1720986642495,-3891.36684221,0.00014,2]
[332140287,1720986642506,-6012.0,0.00014,2]
[332140290,1720986642521,-778.64096614,0.00014,2]
[332140292,1720986642533,-27940.88974367,0.00014,2]
[332140294,1720986642543,-1079.800005,0.00014,2]
[332140296,1720986642554,-24104.6103854,0.00014,2]
[332140302,1720986642607,-256.28423691,0.00014,2]
[332140304,1720986642620,-479.56000001,0.00014,2]
[332140307,1720986642631,-587.47,0.00014,2]
[332140311,1720986642664,-503.4787228,0.00014,2]
[332140313,1720986642675,-843.15773648,0.00014,2]
[332140315,1720986642686,-322.85018007,0.00014,2]
[332140318,1720986642697,-4199.72311746,0.00014,2]
[332140320,1720986642708,-351.45791977,0.00014,2]
[332140382,1720986643316,-176.34357662,0.00011199,2]
[332140385,1720986643325,-17416.24441645,0.00014,2]
[332140389,1720986643337,-297.59077079,0.00014,2]
[332140395,1720986643368,-630.18302999,0.00014,2]
[332140405,1720986643425,-7805.8,0.00014,2]
[332140409,1720986643437,-20743.09103356,0.00014,2]
[332140416,1720986643483,-695.78167097,0.00014,2]
[332140419,1720986643495,-1085.140985,0.00014,2]
[332140429,1720986643542,-717.75861333,0.00014,2]
[332140433,1720986643553,-276.224985,0.00014,2]
[332140610,1720986644939,-1224.01061712,0.00014,2]
[332140717,1720986646381,-444.44834743,0.00014,2]
[332140718,1720986646489,-913.0607,0.00014,2]
[332140719,1720986646542,-16607.21574012,0.00014,2]
[332140853,1720986746469,10308.1959,0.00010997,2]
[332140854,1720987159972,-432.36,0.00011044,2]
[332140855,1720987159996,-300.0,0.00011097,2]
[332140856,1720987160020,-656.19422223,0.00011098,2]
[332140857,1720987160042,-590.8887786,0.00011098,2]
[332140858,1720987160064,-155.38062721,0.00011098,2]
[332140859,1720987160085,-156.0,0.00011098,2]
[332140860,1720987160106,-1706.17637196,0.00011098,2]
[332140861,1720987272202,433.65,0.00010552,2]
[332140862,1720987320914,167.79,9.967e-05,2]
[332140879,1720987819971,386.68404747,9.967e-05,2]
[332140888,1720987832062,-150.0,0.00011097,2]
[332140889,1720987832071,-300.0,0.00011097,2]
[332140890,1720987832080,-1032.25638257,0.00011098,2]
[332140891,1720987832090,-921.27116721,0.00011098,2]
[332140892,1720987832099,-380.32591715,0.00011098,2]
[332140893,1720987832109,-375.89105475,0.00011098,2]
[332140894,1720987832118,-934.32299979,0.00011098,2]
[332140895,1720987832127,-155.44723371,0.00011098,2]
[332140896,1720987832136,-270.25283229,0.00011098,2]
[332140897,1720987832209,-5.90090932,0.00011098,2]
[332140898,1720987832233,-803.04404737,0.00011098,2]
[332140899,1720987832244,-593.972778,0.00011098,2]
[332140905,1720987837454,-280.13964654,0.00011098,2]
[332140906,1720987837507,-2686.0,0.00011098,2]
[332140907,1720987837519,-960.63527437,0.00011098,2]
[332140908,1720987837528,-388.50645422,0.00011098,2]
[332140909,1720987837537,-150.85827141,0.00011098,2]
[332140910,1720987837561,-70.79706438,0.00011098,2]
[332140911,1720987837571,-156.0,0.00011098,2]
[332140912,1720987837579,-491.51450592,0.00011098,2]
[332140913,1720987837588,-164.20797438,0.00011098,2]
[332140914,1720987837598,-789.45308619,0.00011098,2]
[332140915,1720987837607,-155.0,0.00011098,2]
[332140916,1720987837616,-412.61839352,0.00011098,2]
[332140917,1720987837625,-258.88603077,0.00011098,2]
[332140918,1720987837635,-401.57927817,0.00011098,2]
[332140919,1720987837644,-155.0,0.00011098,2]
[332140920,1720987837653,-328.93658441,0.00011098,2]
[332140921,1720987837662,-241.44985364,0.00011098,2]
[332140922,1720987837672,-912.10489493,0.00011098,2]
[332140923,1720987837681,-155.38783042,0.00011098,2]
[332140924,1720987837690,-156.97678549,0.00011098,2]
[332140925,1720987837699,-3393.88143666,0.00011098,2]
[332140926,1720987837709,-276.909,0.00011098,2]
[332140927,1720987837719,-155.90517172,0.00011098,2]
[332140928,1720987837729,-717.89169523,0.00011197,2]
[332140929,1720987837740,-297.74410483,0.00011197,2]
[332140930,1720987837751,-13703.24153336,0.00011199,2]
[332140931,1720987837765,-159.26199103,0.00011199,2]
[332140932,1720987837776,-301.04679019,0.00012081,2]
[332140933,1720987837787,-420.0,0.00012193,2]
[332140934,1720987837797,-200.0,0.00012232,2]
[332140935,1720987837809,-8793.09,0.00012269,2]
[332140936,1720987837819,-155.7163574,0.00012273,2]
[332140937,1720987837829,-250.0,0.00012306,2]
[332140939,1720987837840,-226.82,0.00012346,2]
[332140941,1720987837850,-500.0,0.00012363,2]
[332140943,1720987837861,-250.0,0.00012375,2]
[332140945,1720987837871,-499.99,0.00012375,2]
[332140947,1720987837882,-204.2,0.00012394,2]
[332140949,1720987837892,-1944.36,0.00012466,2]
[332140951,1720987837903,-301.25,0.00012466,2]
[332140952,1720987837912,-214.67,0.00012646,2]
[332140954,1720987837921,-433.65,0.00012815,2]
[332140956,1720987837931,-1000.0,0.00012929,2]
[332140958,1720987837940,-1250.0,0.00013,2]
[332140960,1720987837949,-186.7,0.00013002,2]
[332140961,1720987837958,-528.93489931,0.00013128,2]
[332140963,1720987837968,-40000.0,0.00013329,2]
[332140966,1720987837982,-587.0,0.00013398,2]
[332140969,1720987837991,-327.775,0.00013443,2]
[332140972,1720987838000,-387.08901116,0.00013472,2]
[332140975,1720987838010,-196.94156063,0.000135,2]
[332140978,1720987838019,-1005.0,0.000135,2]
[332140981,1720987838028,-1000.0,0.000135,2]
[332140984,1720987838037,-1000.0,0.000135,2]
[332140987,1720987838047,-1000.0,0.000135,2]
[332140989,1720987838055,-1000.0,0.000135,3]
[332140990,1720987838065,-1000.0,0.000135,3]
[332140992,1720987838074,-1000.0,0.000135,3]
[332140994,1720987838083,-1003.0,0.000135,3]
[332140996,1720987838092,-1000.0,0.000135,2]
[332140998,1720987838101,-1003.0,0.000135,2]
[332141000,1720987838110,-1000.0,0.000135,3]
[332141002,1720987838119,-290.0,0.00013582,2]
[332141004,1720987838129,-295.3553,0.00013598,2]
[332141006,1720987838138,-1811.52510154,0.000136,2]
[332141008,1720987838147,-217.34612163,0.000136,2]
[332141010,1720987838157,-1334.85,0.00013699,5]
[332141012,1720987838166,-250.0,0.00013699,2]
[332141014,1720987838175,-216.48,0.00013699,2]
[332141016,1720987838185,-1000.0,0.00013705,2]
[332141018,1720987838195,-1009.77732956,0.0001372,2]
[332141020,1720987838203,-1080.14866511,0.0001372,2]
[332141022,1720987838213,-169.18,0.00013748,2]
[332141024,1720987838222,-500.0,0.00013757,2]
[332141026,1720987838231,-500.0,0.00013757,2]
[332141028,1720987838241,-500.0,0.00013757,2]
[332141030,1720987838251,-500.0,0.00013757,2]
[332141032,1720987838261,-500.0,0.00013757,2]
[332141034,1720987838270,-500.0,0.00013757,2]
[332141035,1720987838278,-500.0,0.00013757,2]
[332141037,1720987838288,-500.0,0.00013757,2]
[332141040,1720987838300,-500.0,0.00013757,2]
[332141042,1720987838309,-1343.91,0.00013757,2]
[332141044,1720987838320,-500.0,0.00013757,2]
[332141046,1720987838329,-500.0,0.00013757,2]
[332141048,1720987838339,-572.02,0.00013757,2]
[332141050,1720987838349,-500.0,0.00013757,2]
[332141052,1720987838361,-500.0,0.00013757,2]
[332141054,1720987838370,-500.0,0.00013757,2]
[332141056,1720987838379,-500.0,0.00013757,2]
[332141058,1720987838389,-500.0,0.00013757,2]
[332141060,1720987838399,-500.0,0.00013757,2]
[332141062,1720987838409,-500.0,0.00013758,2]
[332141064,1720987838419,-500.0,0.00013758,2]
[332141066,1720987838428,-500.0,0.00013758,2]
[332141068,1720987838438,-500.0,0.00013758,2]
[332141071,1720987838447,-500.0,0.00013758,2]
[332141073,1720987838456,-500.0,0.00013758,2]
[332141075,1720987838465,-500.0,0.00013758,2]
[332141077,1720987838474,-500.0,0.00013758,2]
[332141079,1720987838483,-500.0,0.00013758,2]
[332141081,1720987838492,-156.52565436,0.00013758,2]
[332141083,1720987838501,-500.0,0.00013758,2]
[332141085,1720987838510,-500.0,0.00013758,2]
[332141087,1720987838520,-500.0,0.00013758,2]
[332141088,1720987838528,-500.0,0.00013758,2]
[332141090,1720987838538,-500.0,0.00013758,2]
[332141092,1720987838546,-500.0,0.00013758,2]
[332141094,1720987838555,-500.0,0.00013758,2]
[332141096,1720987838564,-500.0,0.00013758,2]
[332141098,1720987838573,-500.0,0.00013758,2]
[332141100,1720987838582,-500.0,0.00013758,2]
[332141102,1720987838591,-500.0,0.00013758,2]
[332141104,1720987838601,-500.0,0.00013758,2]
[332141106,1720987838610,-500.0,0.00013758,2]
[332141108,1720987838619,-500.0,0.00013758,2]
[332141110,1720987838628,-500.0,0.00013758,2]
[332141112,1720987838637,-500.0,0.00013758,2]
[332141114,1720987838646,-500.0,0.00013758,2]
[332141116,1720987838655,-500.0,0.00013758,2]
[332141118,1720987838664,-500.0,0.00013758,2]
[332141120,1720987838673,-500.0,0.00013758,2]
[332141122,1720987838682,-500.0,0.00013758,2]
[332141124,1720987838692,-500.0,0.00013758,2]
[332141126,1720987838701,-501.04924545,0.00013758,2]
[332141128,1720987838710,-500.0,0.00013758,2]
[332141130,1720987838719,-500.0,0.00013758,2]
[332141132,1720987838729,-500.0,0.00013758,2]
[332141134,1720987838738,-500.0,0.00013758,2]
[332141136,1720987838747,-500.0,0.00013758,2]
[332141138,1720987838757,-500.0,0.00013758,2]
[332141140,1720987838767,-500.0,0.00013758,2]
[332141141,1720987838776,-500.0,0.00013758,2]
[332141144,1720987838785,-500.0,0.00013758,2]
[332141146,1720987838794,-500.0,0.00013758,2]
[332141148,1720987838803,-500.0,0.00013758,2]
[332141149,1720987838812,-508.0822159,0.00013758,2]
[332141151,1720987838821,-500.0,0.00013758,2]
[332141154,1720987838830,-500.0,0.00013758,2]
[332141156,1720987838840,-500.0,0.00013758,2]
[332141158,1720987838849,-500.0,0.00013758,2]
[332141160,1720987838859,-500.0,0.00013758,2]
[332141162,1720987838868,-500.0,0.00013758,2]
[332141164,1720987838878,-500.0,0.00013758,2]
[332141166,1720987838887,-500.0,0.00013758,2]
[332141168,1720987838896,-500.0,0.00013758,2]
[332141170,1720987838906,-500.0,0.00013758,2]
[332141172,1720987838915,-462.49796704,0.00013758,2]
[332141174,1720987838925,-500.0,0.00013758,2]
[332141175,1720987838934,-150.0,0.00013758,2]
[332141177,1720987838943,-500.0,0.00013758,2]
[332141179,1720987838952,-500.0,0.00013758,2]
[332141181,1720987838962,-566.45,0.00013758,2]
[332141183,1720987838971,-500.0,0.00013758,2]
[332141185,1720987838980,-500.0,0.00013758,2]
[332141187,1720987838989,-403.38722685,0.00013758,2]
[332141189,1720987838998,-500.0,0.00013758,2]
[332141191,1720987839007,-500.0,0.00013758,2]
[332141193,1720987839016,-500.0,0.00013758,2]
[332141195,1720987839026,-500.0,0.00013758,2]
[332141197,1720987839036,-500.0,0.00013758,2]
[332141199,1720987839046,-500.0,0.00013758,2]
[332141201,1720987839055,-500.0,0.00013758,2]
[332141203,1720987839065,-500.0,0.00013758,2]
[332141204,1720987839074,-625.85,0.00013758,2]
[332141206,1720987839084,-534.98,0.00013758,2]
[332141208,1720987839093,-500.0,0.00013758,2]
[332141210,1720987839103,-500.0,0.00013758,2]
[332141212,1720987839113,-554.32,0.00013758,2]
[332141214,1720987839122,-500.0,0.00013758,2]
[332141216,1720987839131,-500.0,0.00013758,2]
[332141217,1720987839141,-500.0,0.00013758,2]
[332141219,1720987839150,-500.0,0.00013758,2]
[332141221,1720987839160,-500.0,0.00013758,2]
[332141223,1720987839170,-500.0,0.00013758,2]
[332141225,1720987839179,-280.42005095,0.00013758,2]
[332141227,1720987839188,-500.0,0.00013758,2]
[332141229,1720987839199,-500.0,0.00013758,2]
[332141231,1720987839208,-552.31,0.00013758,2]
[332141233,1720987839218,-572.44881012,0.00013758,2]
[332141235,1720987839228,-500.0,0.00013758,2]
[332141237,1720987839237,-500.0,0.00013758,2]
[332141240,1720987839247,-500.0,0.00013758,2]
[332141241,1720987839257,-500.0,0.00013758,2]
[332141243,1720987839266,-500.0,0.00013758,2]
[332141245,1720987839275,-500.0,0.00013758,2]
[332141247,1720987839285,-595.59,0.00013758,2]
[332141249,1720987839295,-500.0,0.00013758,2]
[332141251,1720987839304,-500.0,0.00013758,2]
[332141253,1720987839313,-500.0,0.00013758,2]
[332141254,1720987839322,-500.0,0.00013758,2]
[332141255,1720987839332,-500.0,0.00013758,2]
[332141256,1720987839341,-500.0,0.00013758,2]
[332141257,1720987839351,-500.0,0.00013758,2]
[332141258,1720987839360,-500.0,0.00013758,2]
[332141259,1720987839370,-500.0,0.00013758,2]
[332141260,1720987839380,-500.0,0.00013758,2]
[332141261,1720987839389,-500.0,0.00013758,2]
[332141262,1720987839399,-500.0,0.00013758,2]
[332141264,1720987839409,-500.0,0.00013758,2]
[332141266,1720987839418,-500.0,0.00013758,2]
[332141268,1720987839428,-500.0,0.00013758,2]
[332141270,1720987839438,-500.0,0.00013758,2]
[332141272,1720987839447,-500.0,0.00013758,2]
[332141275,1720987839457,-500.0,0.00013758,2]
[332141278,1720987839467,-500.0,0.00013758,2]
[332141280,1720987839476,-500.0,0.00013758,2]
[332141282,1720987839485,-500.0,0.00013758,2]
[332141284,1720987839495,-577.05,0.00013758,2]
[332141286,1720987839504,-500.0,0.00013758,2]
[332141288,1720987839513,-500.0,0.00013758,2]
[332141290,1720987839522,-500.0,0.00013758,2]
[332141292,1720987839531,-500.0,0.00013758,2]
[332141294,1720987839540,-500.0,0.00013758,2]
[332141296,1720987839550,-500.0,0.00013758,2]